Workbook

Sheet ICMAL
A6: İCMAL
A9: PROJE : | H9: YÜKLENİCİ :
A10: POZ NO :
A11: BLOK ADI : | B11: A BLOK
A12: POZ ADI :
A14: KAT | B14: YAPILAN İŞİN YERİ | I14: MİKTAR | J14: BİRİM
A15: 23.KAT | B15: A | C15: 20 cm GAZBETON İLE DUVAR YAPILMASI (SARF MLZ. + ISCILIK) | J15: m²
A16: 23.KAT | B16: B | C16: 15 cm GAZBETON İLE DUVAR YAPILMASI (SARF MLZ. + ISCILIK) | J16: m²
A17: 23.KAT | B17: C | C17: 12,5 cm GAZBETON İLE DUVAR YAPILMASI (SARF MLZ. + ISCILIK) | J17: m²
A18: 23.KAT | B18: D | C18: 10 cm GAZBETON İLE DUVAR YAPILMASI (SARF MLZ. + ISCILIK) | J18: m²
A19: 23.KAT | B19: E | C19: KARA SIVA YAPILMASI (MLZ. + ISCILIK) | J19: m²
A20: 23.KAT | B20: F | C20: DUVAR ÜZERİ ALÇI SIVA+SATEN ALÇI YAPILMASI (MLZ. + ISCILIK) | I20: 0 | J20: m²
A21: 23.KAT | B21: F_EP01 | C21: DUVAR ÜZERİ ALÇI SIVA+SATEN ALÇI YAPILMASI (MLZ. + ISCILIK) | J21: m²
A22: 23.KAT | B22: G | C22: DUVAR ÜZERİ ALÇI SIVA (MLZ. + ISCILIK) | I22: 0 | J22: m²
A23: 23.KAT | B23: G_EP01 | C23: DUVAR ÜZERİ ALÇI SIVA (MLZ. + ISCILIK) | I23: ='23K'!$O$323 -> 2639.1616 | J23: m²
A24: 23.KAT | B24: H | C24: TAVAN ALÇI SIVA+SATEN ALÇI YAPILMASI (MLZ. + ISCILIK) | J24: m²
A25: 23.KAT | B25: I | C25: TAVAN ALÇI SIVA (MLZ. + ISCILIK) | J25: m²
A26: 23.KAT | B26: J | C26: DUVAR-TAVAN SATEN ALÇI YAPILMASI (MLZ. + ISCILIK) | J26: mt
A27: 23.KAT | B27: K | C27: 12.5cm GAZBETON PANEL (60X380X12.5cm) İLE DUVAR YAPILMASI (SARF MLZ. + ISCILIK) | J27: mt
A28: 23.KAT | B28: L | C28: DUVAR ALTI AKUSTİK ŞİLTE 8 MM * 100 MM (DUVAR İMALATLARI İŞÇİLİK FİYATINA DAHİL) | J28: mt
A29: 23.KAT | B29: M | C29: DUVAR ALTI AKUSTİK ŞİLTE 8 MM * 125 MM (DUVAR İMALATLARI İŞÇİLİK FİYATINA DAHİL) | J29: mt
A30: 23.KAT | B30: N | C30: DUVAR ALTI AKUSTİK ŞİLTE 8 MM * 150 MM (DUVAR İMALATLARI İŞÇİLİK FİYATINA DAHİL) | J30: mt
A31: 23.KAT | B31: O | C31: DUVAR ALTI AKUSTİK ŞİLTE 8 MM * 200 MM (DUVAR İMALATLARI İŞÇİLİK FİYATINA DAHİL) | J31: m²
A32: 23.KAT | B32: P | C32: HER TÜRLÜ, HER EBATTA YATAY ve DİKEY HATIL YAPILMASI | J32: m²
A33: 23.KAT | B33: R_EP02 | C33: ŞAFT İÇİ ALÇI SIVA YAPILMASI | J33: m²
A34: 23.KAT | B34: S_EP02 | C34: ŞAFT İÇİ BOYA YAPILMASI | J34: m²

Sheet 23K
A6: METRAJ
A7: CETVELİ
A9: PROJE : | M9: YÜKLENİCİ :
A10: POZ NO :
A11: POZ ADI : | B11: A BLOK - GAZBETON DUVAR, SIVA, ALÇISIVA+SATEN ALÇI İŞLERİ
D13: 23. NORMAL KAT DUVAR İMALATLARI
A14: 23. NORMAL KAT | B14: M-A-UP-DV-23-102-R01-(+100.50 ) | C14: G_EP01 | D14: DUVAR ÜZERİ ALÇI SIVA (MLZ. + ISCILIK) | F14: 1 | G14: 23. KAT ALÇI SIVA | H14: 1 | I14: 1 | J14: 3.33 | K14: 1 | L14: 3.73 | M14: =IF(I14>0,H14*I14*J14*K14*L14,0) -> 12.4209 | N14: =IF(I14<0,H14*I14*J14*K14*L14*-1,0) -> 0 | O14: =+M14-N14 -> 12.4209 | P14: m2
A15: 23. NORMAL KAT | B15: M-A-UP-DV-23-102-R01-(+100.50 ) | C15: G_EP01 | D15: DUVAR ÜZERİ ALÇI SIVA (MLZ. + ISCILIK) | F15: 2 | G15: 23. KAT ALÇI SIVA | H15: 1 | I15: 1 | J15: 0.97 | K15: 1 | L15: 3.73 | M15: 3.6181 | N15: 0 | O15: 3.6181 | P15: m2
A16: 23. NORMAL KAT | B16: M-A-UP-DV-23-102-R01-(+100.50 ) | C16: G_EP01 | D16: DUVAR ÜZERİ ALÇI SIVA (MLZ. + ISCILIK) | F16: KR2 | G16: Kiriş Minha | H16: 1 | I16: -1 | J16: 0.47 | K16: 1 | L16: 0.48 | M16: 0 | N16: 0.2256 | O16: -0.2256 | P16: m2
A17: 23. NORMAL KAT | B17: M-A-UP-DV-23-102-R01-(+100.50 ) | C17: G_EP01 | D17: DUVAR ÜZERİ ALÇI SIVA (MLZ. + ISCILIK) | F17: 3 | G17: 23. KAT ALÇI SIVA | H17: 1 | I17: 1 | J17: 1.9 | K17: 1 | L17: 3.73 | M17: 7.087 | N17: 0 | O17: 7.087 | P17: m2
A18: 23. NORMAL KAT | B18: M-A-UP-DV-23-102-R01-(+100.50 ) | C18: G_EP01 | D18: DUVAR ÜZERİ ALÇI SIVA (MLZ. + ISCILIK) | F18: 4 | G18: 23. KAT ALÇI SIVA | H18: 1 | I18: 1 | J18: 2.54 | K18: 1 | L18: 3.73 | M18: 9.4742 | N18: 0 | O18: 9.4742 | P18: m2
A19: 23. NORMAL KAT | B19: M-A-UP-DV-23-102-R01-(+100.50 ) | C19: G_EP01 | D19: DUVAR ÜZERİ ALÇI SIVA (MLZ. + ISCILIK) | F19: KR1 | G19: Kiriş Minha | H19: 1 | I19: -1 | J19: 0.7 | K19: 1 | L19: 0.48 | M19: 0 | N19: 0.336 | O19: -0.336 | P19: m2
A20: 23. NORMAL KAT | B20: M-A-UP-DV-23-102-R01-(+100.50 ) | C20: G_EP01 | D20: DUVAR ÜZERİ ALÇI SIVA (MLZ. + ISCILIK) | F20: 5 | G20: 23. KAT ALÇI SIVA | H20: 1 | I20: 1 | J20: 0.77 | K20: 1 | L20: 3.73 | M20: 2.8721 | N20: 0 | O20: 2.8721 | P20: m2
A21: 23. NORMAL KAT | B21: M-A-UP-DV-23-102-R01-(+100.50 ) | C21: G_EP01 | D21: DUVAR ÜZERİ ALÇI SIVA (MLZ. + ISCILIK) | F21: 6 | G21: 23. KAT ALÇI SIVA | H21: 1 | I21: 8 | J21: 1.96 | K21: 1 | L21: 3.73 | M21: 58.4864 | N21: 0 | O21: 58.4864 | P21: m2
A22: 23. NORMAL KAT | B22: M-A-UP-DV-23-102-R01-(+100.50 ) | C22: G_EP01 | D22: DUVAR ÜZERİ ALÇI SIVA (MLZ. + ISCILIK) | F22: K1 | G22: Minha Kapı | H22: 1 | I22: -8 | J22: 1.1 | K22: 1 | L22: 2.44 | M22: 0 | N22: 21.472 | O22: -21.472 | P22: m2
A23: 23. NORMAL KAT | B23: M-A-UP-DV-23-102-R01-(+100.50 ) | C23: G_EP01 | D23: DUVAR ÜZERİ ALÇI SIVA (MLZ. + ISCILIK) | F23: 7 | G23: 23. KAT ALÇI SIVA | H23: 1 | I23: 1 | J23: 3.75 | K23: 1 | L23: 3.73 | M23: 13.9875 | N23: 0 | O23: 13.9875 | P23: m2
A24: 23. NORMAL KAT | B24: M-A-UP-DV-23-102-R01-(+100.50 ) | C24: G_EP01 | D24: DUVAR ÜZERİ ALÇI SIVA (MLZ. + ISCILIK) | F24: K1 | G24: Minha Kapı | H24: 1 | I24: -1 | J24: 1.1 | K24: 1 | L24: 2.44 | M24: 0 | N24: 2.684 | O24: -2.684 | P24: m2
A25: 23. NORMAL KAT | B25: M-A-UP-DV-23-102-R01-(+100.50 ) | C25: G_EP01 | D25: DUVAR ÜZERİ ALÇI SIVA (MLZ. + ISCILIK) | F25: 8 | G25: 23. KAT ALÇI SIVA | H25: 1 | I25: 4 | J25: 1.2 | K25: 1 | L25: 3.73 | M25: 17.904 | N25: 0 | O25: 17.904 | P25: m2
A26: 23. NORMAL KAT | B26: M-A-UP-DV-23-102-R01-(+100.50 ) | C26: G_EP01 | D26: DUVAR ÜZERİ ALÇI SIVA (MLZ. + ISCILIK) | F26: KR3 | G26: Kiriş Minha | H26: 1 | I26: -4 | J26: 1 | K26: 1 | L26: 0.48 | M26: 0 | N26: 1.92 | O26: -1.92 | P26: m2
A27: 23. NORMAL KAT | B27: M-A-UP-DV-23-102-R01-(+100.50 ) | C27: G_EP01 | D27: DUVAR ÜZERİ ALÇI SIVA (MLZ. + ISCILIK) | F27: 9 | G27: 23. KAT ALÇI SIVA | H27: 1 | I27: 1 | J27: 1.2 | K27: 1 | L27: 3.73 | M27: 4.476 | N27: 0 | O27: 4.476 | P27: m2
A28: 23. NORMAL KAT | B28: M-A-UP-DV-23-102-R01-(+100.50 ) | C28: G_EP01 | D28: DUVAR ÜZERİ ALÇI SIVA (MLZ. + ISCILIK) | F28: KR1 | G28: Kiriş Minha | H28: 1 | I28: -1 | J28: 0.7 | K28: 1 | L28: 0.48 | M28: 0 | N28: 0.336 | O28: -0.336 | P28: m2
A29: 23. NORMAL KAT | B29: M-A-UP-DV-23-102-R01-(+100.50 ) | C29: G_EP01 | D29: DUVAR ÜZERİ ALÇI SIVA (MLZ. + ISCILIK) | F29: 10 | G29: 23. KAT ALÇI SIVA | H29: 1 | I29: 1 | J29: 1.9 | K29: 1 | L29: 3.73 | M29: 7.087 | N29: 0 | O29: 7.087 | P29: m2
A30: 23. NORMAL KAT | B30: M-A-UP-DV-23-102-R01-(+100.50 ) | C30: G_EP01 | D30: DUVAR ÜZERİ ALÇI SIVA (MLZ. + ISCILIK) | F30: 11 | G30: 23. KAT ALÇI SIVA | H30: 1 | I30: 9 | J30: 0.7 | K30: 1 | L30: 2.95 | M30: 18.585 | N30: 0 | O30: 18.585 | P30: m2
A31: 23. NORMAL KAT | B31: M-A-UP-DV-23-102-R01-(+100.50 ) | C31: G_EP01 | D31: DUVAR ÜZERİ ALÇI SIVA (MLZ. + ISCILIK) | F31: 12 | G31: 23. KAT ALÇI SIVA | H31: 1 | I31: 13 | J31: 2.3 | K31: 1 | L31: 3.73 | M31: 111.527 | N31: 0 | O31: 111.527 | P31: m2
A32: 23. NORMAL KAT | B32: M-A-UP-DV-23-102-R01-(+100.50 ) | C32: G_EP01 | D32: DUVAR ÜZERİ ALÇI SIVA (MLZ. + ISCILIK) | F32: KR3 | G32: Kiriş Minha | H32: 1 | I32: -12 | J32: 1 | K32: 1 | L32: 0.48 | M32: 0 | N32: 5.76 | O32: -5.76 | P32: m2
A33: 23. NORMAL KAT | B33: M-A-UP-DV-23-102-R01-(+100.50 ) | C33: G_EP01 | D33: DUVAR ÜZERİ ALÇI SIVA (MLZ. + ISCILIK) | F33: KR6 | G33: Kiriş Minha | H33: 1 | I33: -1 | J33: 0.6 | K33: 1 | L33: 0.48 | M33: 0 | N33: 0.288 | O33: -0.288 | P33: m2
A34: 23. NORMAL KAT | B34: M-A-UP-DV-23-102-R01-(+100.50 ) | C34: G_EP01 | D34: DUVAR ÜZERİ ALÇI SIVA (MLZ. + ISCILIK) | F34: 13 | G34: 23. KAT ALÇI SIVA | H34: 1 | I34: 1 | J34: 11.32 | K34: 1 | L34: 3.73 | M34: 42.2236 | N34: 0 | O34: 42.2236 | P34: m2
A35: 23. NORMAL KAT | B35: M-A-UP-DV-23-102-R01-(+100.50 ) | C35: G_EP01 | D35: DUVAR ÜZERİ ALÇI SIVA (MLZ. + ISCILIK) | F35: K2 | G35: Minha Kapı | H35: 1 | I35: -4 | J35: 0.8 | K35: 1 | L35: 2.44 | M35: 0 | N35: 7.808 | O35: -7.808 | P35: m2
A36: 23. NORMAL KAT | B36: M-A-UP-DV-23-102-R01-(+100.50 ) | C36: G_EP01 | D36: DUVAR ÜZERİ ALÇI SIVA (MLZ. + ISCILIK) | F36: KR1 | G36: Kiriş Minha | H36: 1 | I36: -1 | J36: 0.7 | K36: 1 | L36: 0.48 | M36: 0 | N36: 0.336 | O36: -0.336 | P36: m2
A37: 23. NORMAL KAT | B37: M-A-UP-DV-23-102-R01-(+100.50 ) | C37: G_EP01 | D37: DUVAR ÜZERİ ALÇI SIVA (MLZ. + ISCILIK) | F37: 14 | G37: 23. KAT ALÇI SIVA | H37: 1 | I37: 2 | J37: 1.7 | K37: 1 | L37: 3.73 | M37: 12.682 | N37: 0 | O37: 12.682 | P37: m2
A38: 23. NORMAL KAT | B38: M-A-UP-DV-23-102-R01-(+100.50 ) | C38: G_EP01 | D38: DUVAR ÜZERİ ALÇI SIVA (MLZ. + ISCILIK) | F38: K2 | G38: Minha Kapı | H38: 1 | I38: -1 | J38: 0.8 | K38: 1 | L38: 2.44 | M38: 0 | N38: 1.952 | O38: -1.952 | P38: m2
A39: 23. NORMAL KAT | B39: M-A-UP-DV-23-102-R01-(+100.50 ) | C39: G_EP01 | D39: DUVAR ÜZERİ ALÇI SIVA (MLZ. + ISCILIK) | F39: 15 | G39: 23. KAT ALÇI SIVA | H39: 1 | I39: 8 | J39: 1.8 | K39: 1 | L39: 3.73 | M39: 53.712 | N39: 0 | O39: 53.712 | P39: m2
A40: 23. NORMAL KAT | B40: M-A-UP-DV-23-102-R01-(+100.50 ) | C40: G_EP01 | D40: DUVAR ÜZERİ ALÇI SIVA (MLZ. + ISCILIK) | F40: 16 | G40: 23. KAT ALÇI SIVA | H40: 1 | I40: 2 | J40: 3.5 | K40: 1 | L40: 3.73 | M40: 26.11 | N40: 0 | O40: 26.11 | P40: m2
A41: 23. NORMAL KAT | B41: M-A-UP-DV-23-102-R01-(+100.50 ) | C41: G_EP01 | D41: DUVAR ÜZERİ ALÇI SIVA (MLZ. + ISCILIK) | F41: K2 | G41: Minha Kapı | H41: 1 | I41: -1 | J41: 0.8 | K41: 1 | L41: 2.44 | M41: 0 | N41: 1.952 | O41: -1.952 | P41: m2
A42: 23. NORMAL KAT | B42: M-A-UP-DV-23-102-R01-(+100.50 ) | C42: G_EP01 | D42: DUVAR ÜZERİ ALÇI SIVA (MLZ. + ISCILIK) | F42: 17 | G42: 23. KAT ALÇI SIVA | H42: 1 | I42: 2 | J42: 2.88 | K42: 1 | L42: 3.73 | M42: 21.4848 | N42: 0 | O42: 21.4848 | P42: m2
A43: 23. NORMAL KAT | B43: M-A-UP-DV-23-102-R01-(+100.50 ) | C43: G_EP01 | D43: DUVAR ÜZERİ ALÇI SIVA (MLZ. + ISCILIK) | F43: K2 | G43: Minha Kapı | H43: 1 | I43: -1 | J43: 0.8 | K43: 1 | L43: 2.44 | M43: 0 | N43: 1.952 | O43: -1.952 | P43: m2
A44: 23. NORMAL KAT | B44: M-A-UP-DV-23-102-R01-(+100.50 ) | C44: G_EP01 | D44: DUVAR ÜZERİ ALÇI SIVA (MLZ. + ISCILIK) | F44: KR1 | G44: Kiriş Minha | H44: 1 | I44: -2 | J44: 0.7 | K44: 1 | L44: 0.48 | M44: 0 | N44: 0.672 | O44: -0.672 | P44: m2
A45: 23. NORMAL KAT | B45: M-A-UP-DV-23-102-R01-(+100.50 ) | C45: G_EP01 | D45: DUVAR ÜZERİ ALÇI SIVA (MLZ. + ISCILIK) | F45: 18 | G45: 23. KAT ALÇI SIVA | H45: 1 | I45: 2 | J45: 2.65 | K45: 1 | L45: 3.73 | M45: 19.769 | N45: 0 | O45: 19.769 | P45: m2
A46: 23. NORMAL KAT | B46: M-A-UP-DV-23-102-R01-(+100.50 ) | C46: G_EP01 | D46: DUVAR ÜZERİ ALÇI SIVA (MLZ. + ISCILIK) | F46: K2 | G46: Minha Kapı | H46: 1 | I46: -1 | J46: 0.8 | K46: 1 | L46: 2.44 | M46: 0 | N46: 1.952 | O46: -1.952 | P46: m2
A47: 23. NORMAL KAT | B47: M-A-UP-DV-23-102-R01-(+100.50 ) | C47: G_EP01 | D47: DUVAR ÜZERİ ALÇI SIVA (MLZ. + ISCILIK) | F47: 19 | G47: 23. KAT ALÇI SIVA | H47: 1 | I47: 1 | J47: 1.9 | K47: 1 | L47: 3.73 | M47: 7.087 | N47: 0 | O47: 7.087 | P47: m2
A48: 23. NORMAL KAT | B48: M-A-UP-DV-23-102-R01-(+100.50 ) | C48: G_EP01 | D48: DUVAR ÜZERİ ALÇI SIVA (MLZ. + ISCILIK) | F48: 20 | G48: 23. KAT ALÇI SIVA | H48: 1 | I48: 1 | J48: 4.04 | K48: 1 | L48: 3.73 | M48: 15.0692 | N48: 0 | O48: 15.0692 | P48: m2
A49: 23. NORMAL KAT | B49: M-A-UP-DV-23-102-R01-(+100.50 ) | C49: G_EP01 | D49: DUVAR ÜZERİ ALÇI SIVA (MLZ. + ISCILIK) | F49: 21 | G49: 23. KAT ALÇI SIVA | H49: 1 | I49: 1 | J49: 22.58 | K49: 1 | L49: 3.73 | M49: 84.2234 | N49: 0 | O49: 84.2234 | P49: m2
A50: 23. NORMAL KAT | B50: M-A-UP-DV-23-102-R01-(+100.50 ) | C50: G_EP01 | D50: DUVAR ÜZERİ ALÇI SIVA (MLZ. + ISCILIK) | F50: K3 | G50: Minha Kapı | H50: 1 | I50: -2 | J50: 1 | K50: 1 | L50: 1 | M50: 0 | N50: 2 | O50: -2 | P50: m2
A51: 23. NORMAL KAT | B51: M-A-UP-DV-23-102-R01-(+100.50 ) | C51: G_EP01 | D51: DUVAR ÜZERİ ALÇI SIVA (MLZ. + ISCILIK) | F51: K4 | G51: Minha Kapı | H51: 1 | I51: -2 | J51: 0.65 | K51: 1 | L51: 1.8 | M51: 0 | N51: 2.34 | O51: -2.34 | P51: m2
A52: 23. NORMAL KAT | B52: M-A-UP-DV-23-102-R01-(+100.50 ) | C52: G_EP01 | D52: DUVAR ÜZERİ ALÇI SIVA (MLZ. + ISCILIK) | F52: 22 | G52: 23. KAT ALÇI SIVA | H52: 1 | I52: 1 | J52: 4.43 | K52: 1 | L52: 3.73 | M52: 16.5239 | N52: 0 | O52: 16.5239 | P52: m2
A53: 23. NORMAL KAT | B53: M-A-UP-DV-23-102-R01-(+100.50 ) | C53: G_EP01 | D53: DUVAR ÜZERİ ALÇI SIVA (MLZ. + ISCILIK) | F53: K1 | G53: Minha Kapı | H53: 1 | I53: -1 | J53: 1.1 | K53: 1 | L53: 2.44 | M53: 0 | N53: 2.684 | O53: -2.684 | P53: m2
A54: 23. NORMAL KAT | B54: M-A-UP-DV-23-102-R01-(+100.50 ) | C54: G_EP01 | D54: DUVAR ÜZERİ ALÇI SIVA (MLZ. + ISCILIK) | F54: 23 | G54: 23. KAT ALÇI SIVA | H54: 1 | I54: 2 | J54: 2.03 | K54: 1 | L54: 3.73 | M54: 15.1438 | N54: 0 | O54: 15.1438 | P54: m2
A55: 23. NORMAL KAT | B55: M-A-UP-DV-23-102-R01-(+100.50 ) | C55: G_EP01 | D55: DUVAR ÜZERİ ALÇI SIVA (MLZ. + ISCILIK) | F55: 24 | G55: 23. KAT ALÇI SIVA | H55: 1 | I55: 1 | J55: 3.4 | K55: 1 | L55: 3.73 | M55: 12.682 | N55: 0 | O55: 12.682 | P55: m2
A56: 23. NORMAL KAT | B56: M-A-UP-DV-23-102-R01-(+100.50 ) | C56: G_EP01 | D56: DUVAR ÜZERİ ALÇI SIVA (MLZ. + ISCILIK) | F56: K2 | G56: Minha Kapı | H56: 1 | I56: -1 | J56: 0.8 | K56: 1 | L56: 2.44 | M56: 0 | N56: 1.952 | O56: -1.952 | P56: m2
A57: 23. NORMAL KAT | B57: M-A-UP-DV-23-102-R01-(+100.50 ) | C57: G_EP01 | D57: DUVAR ÜZERİ ALÇI SIVA (MLZ. + ISCILIK) | F57: KR4 | G57: Kiriş Minha | H57: 1 | I57: -1 | J57: 0.52 | K57: 1 | L57: 0.48 | M57: 0 | N57: 0.2496 | O57: -0.2496 | P57: m2
A58: 23. NORMAL KAT | B58: M-A-UP-DV-23-102-R01-(+100.50 ) | C58: G_EP01 | D58: DUVAR ÜZERİ ALÇI SIVA (MLZ. + ISCILIK) | F58: 25 | G58: 23. KAT ALÇI SIVA | H58: 1 | I58: 1 | J58: 2.68 | K58: 1 | L58: 3.25 | M58: 8.71 | N58: 0 | O58: 8.71 | P58: m2
A59: 23. NORMAL KAT | B59: M-A-UP-DV-23-102-R01-(+100.50 ) | C59: G_EP01 | D59: DUVAR ÜZERİ ALÇI SIVA (MLZ. + ISCILIK) | F59: 26 | G59: 23. KAT ALÇI SIVA | H59: 1 | I59: 3 | J59: 0.52 | K59: 1 | L59: 3.25 | M59: 5.07 | N59: 0 | O59: 5.07 | P59: m2
A60: 23. NORMAL KAT | B60: M-A-UP-DV-23-102-R01-(+100.50 ) | C60: G_EP01 | D60: DUVAR ÜZERİ ALÇI SIVA (MLZ. + ISCILIK) | F60: 27 | G60: 23. KAT ALÇI SIVA | H60: 1 | I60: 2 | J60: 3.22 | K60: 1 | L60: 3.73 | M60: 24.0212 | N60: 0 | O60: 24.0212 | P60: m2
A61: 23. NORMAL KAT | B61: M-A-UP-DV-23-102-R01-(+100.50 ) | C61: G_EP01 | D61: DUVAR ÜZERİ ALÇI SIVA (MLZ. + ISCILIK) | F61: K2 | G61: Minha Kapı | H61: 1 | I61: -1 | J61: 0.8 | K61: 1 | L61: 2.44 | M61: 0 | N61: 1.952 | O61: -1.952 | P61: m2
A62: 23. NORMAL KAT | B62: M-A-UP-DV-23-102-R01-(+100.50 ) | C62: G_EP01 | D62: DUVAR ÜZERİ ALÇI SIVA (MLZ. + ISCILIK) | F62: KR5 | G62: Kiriş Minha | H62: 1 | I62: -2 | J62: 0.5 | K62: 1 | L62: 0.48 | M62: 0 | N62: 0.48 | O62: -0.48 | P62: m2
A63: 23. NORMAL KAT | B63: M-A-UP-DV-23-102-R01-(+100.50 ) | C63: G_EP01 | D63: DUVAR ÜZERİ ALÇI SIVA (MLZ. + ISCILIK) | F63: 28 | G63: 23. KAT ALÇI SIVA | H63: 1 | I63: 1 | J63: 1.93 | K63: 1 | L63: 3.25 | M63: 6.2725 | N63: 0 | O63: 6.2725 | P63: m2
A64: 23. NORMAL KAT | B64: M-A-UP-DV-23-102-R01-(+100.50 ) | C64: G_EP01 | D64: DUVAR ÜZERİ ALÇI SIVA (MLZ. + ISCILIK) | F64: 29 | G64: 23. KAT ALÇI SIVA | H64: 1 | I64: 1 | J64: 1.93 | K64: 1 | L64: 3.73 | M64: 7.1989 | N64: 0 | O64: 7.1989 | P64: m2
A65: 23. NORMAL KAT | B65: M-A-UP-DV-23-102-R01-(+100.50 ) | C65: G_EP01 | D65: DUVAR ÜZERİ ALÇI SIVA (MLZ. + ISCILIK) | F65: 30 | G65: 23. KAT ALÇI SIVA | H65: 1 | I65: 1 | J65: 0.7 | K65: 1 | L65: 3.25 | M65: 2.275 | N65: 0 | O65: 2.275 | P65: m2
A66: 23. NORMAL KAT | B66: M-A-UP-DV-23-102-R01-(+100.50 ) | C66: G_EP01 | D66: DUVAR ÜZERİ ALÇI SIVA (MLZ. + ISCILIK) | F66: 31 | G66: 23. KAT ALÇI SIVA | H66: 1 | I66: 1 | J66: 1.9 | K66: 1 | L66: 3.73 | M66: 7.087 | N66: 0 | O66: 7.087 | P66: m2
A67: 23. NORMAL KAT | B67: M-A-UP-DV-23-102-R01-(+100.50 ) | C67: G_EP01 | D67: DUVAR ÜZERİ ALÇI SIVA (MLZ. + ISCILIK) | F67: 32 | G67: 23. KAT ALÇI SIVA | H67: 1 | I67: 1 | J67: 0.55 | K67: 1 | L67: 3.73 | M67: 2.0515 | N67: 0 | O67: 2.0515 | P67: m2
A68: 23. NORMAL KAT | B68: M-A-UP-DV-23-102-R01-(+100.50 ) | C68: G_EP01 | D68: DUVAR ÜZERİ ALÇI SIVA (MLZ. + ISCILIK) | F68: 33 | G68: 23. KAT ALÇI SIVA | H68: 1 | I68: 6 | J68: 0.55 | K68: 1 | L68: 3.25 | M68: 10.725 | N68: 0 | O68: 10.725 | P68: m2
A69: 23. NORMAL KAT | B69: M-A-UP-DV-23-102-R01-(+100.50 ) | C69: G_EP01 | D69: DUVAR ÜZERİ ALÇI SIVA (MLZ. + ISCILIK) | F69: 34 | G69: 23. KAT ALÇI SIVA | H69: 1 | I69: 3 | J69: 1.6 | K69: 1 | L69: 3.25 | M69: 15.6 | N69: 0 | O69: 15.6 | P69: m2
A70: 23. NORMAL KAT | B70: M-A-UP-DV-23-102-R01-(+100.50 ) | C70: G_EP01 | D70: DUVAR ÜZERİ ALÇI SIVA (MLZ. + ISCILIK) | F70: 35 | G70: 23. KAT ALÇI SIVA | H70: 1 | I70: 1 | J70: 1.1 | K70: 1 | L70: 3.73 | M70: 4.103 | N70: 0 | O70: 4.103 | P70: m2
A71: 23. NORMAL KAT | B71: M-A-UP-DV-23-102-R01-(+100.50 ) | C71: G_EP01 | D71: DUVAR ÜZERİ ALÇI SIVA (MLZ. + ISCILIK) | F71: 36 | G71: 23. KAT ALÇI SIVA | H71: 1 | I71: 1 | J71: 5.65 | K71: 1 | L71: 3.73 | M71: 21.0745 | N71: 0 | O71: 21.0745 | P71: m2
A72: 23. NORMAL KAT | B72: M-A-UP-DV-23-102-R01-(+100.50 ) | C72: G_EP01 | D72: DUVAR ÜZERİ ALÇI SIVA (MLZ. + ISCILIK) | F72: KR6 | G72: Kiriş Minha | H72: 1 | I72: -1 | J72: 0.6 | K72: 1 | L72: 0.48 | M72: 0 | N72: 0.288 | O72: -0.288 | P72: m2
A73: 23. NORMAL KAT | B73: M-A-UP-DV-23-102-R01-(+100.50 ) | C73: G_EP01 | D73: DUVAR ÜZERİ ALÇI SIVA (MLZ. + ISCILIK) | F73: 37 | G73: 23. KAT ALÇI SIVA | H73: 1 | I73: 1 | J73: 3.02 | K73: 1 | L73: 3.73 | M73: 11.2646 | N73: 0 | O73: 11.2646 | P73: m2
A74: 23. NORMAL KAT | B74: M-A-UP-DV-23-102-R01-(+100.50 ) | C74: G_EP01 | D74: DUVAR ÜZERİ ALÇI SIVA (MLZ. + ISCILIK) | F74: K4 | G74: Minha Kapı | H74: 1 | I74: -1 | J74: 0.65 | K74: 1 | L74: 1.8 | M74: 0 | N74: 1.17 | O74: -1.17 | P74: m2
A75: 23. NORMAL KAT | B75: M-A-UP-DV-23-102-R01-(+100.50 ) | C75: G_EP01 | D75: DUVAR ÜZERİ ALÇI SIVA (MLZ. + ISCILIK) | F75: 38 | G75: 23. KAT ALÇI SIVA | H75: 1 | I75: 1 | J75: 2.68 | K75: 1 | L75: 3.73 | M75: 9.9964 | N75: 0 | O75: 9.9964 | P75: m2
A76: 23. NORMAL KAT | B76: M-A-UP-DV-23-102-R01-(+100.50 ) | C76: G_EP01 | D76: DUVAR ÜZERİ ALÇI SIVA (MLZ. + ISCILIK) | F76: K1 | G76: Minha Kapı | H76: 1 | I76: -1 | J76: 1.1 | K76: 1 | L76: 2.44 | M76: 0 | N76: 2.684 | O76: -2.684 | P76: m2
A77: 23. NORMAL KAT | B77: M-A-UP-DV-23-102-R01-(+100.50 ) | C77: G_EP01 | D77: DUVAR ÜZERİ ALÇI SIVA (MLZ. + ISCILIK) | F77: KR1 | G77: Kiriş Minha | H77: 1 | I77: -1 | J77: 0.7 | K77: 1 | L77: 0.48 | M77: 0 | N77: 0.336 | O77: -0.336 | P77: m2
A78: 23. NORMAL KAT | B78: M-A-UP-DV-23-102-R01-(+100.50 ) | C78: G_EP01 | D78: DUVAR ÜZERİ ALÇI SIVA (MLZ. + ISCILIK) | F78: 39 | G78: 23. KAT ALÇI SIVA | H78: 1 | I78: 1 | J78: 1.75 | K78: 1 | L78: 3.73 | M78: =IF(I78>0,H78*I78*J78*K78*L78,0) -> 6.5275 | N78: =IF(I78<0,H78*I78*J78*K78*L78*-1,0) -> 0 | O78: =+M78-N78 -> 6.5275 | P78: m2
A79: 23. NORMAL KAT | B79: M-A-UP-DV-23-102-R01-(+100.50 ) | C79: G_EP01 | D79: DUVAR ÜZERİ ALÇI SIVA (MLZ. + ISCILIK) | F79: K1 | G79: Minha Kapı | H79: 1 | I79: -1 | J79: 1.1 | K79: 1 | L79: 2.44 | M79: 0 | N79: 2.684 | O79: -2.684 | P79: m2
A80: 23. NORMAL KAT | B80: M-A-UP-DV-23-102-R01-(+100.50 ) | C80: G_EP01 | D80: DUVAR ÜZERİ ALÇI SIVA (MLZ. + ISCILIK) | F80: 40 | G80: 23. KAT ALÇI SIVA | H80: 1 | I80: 1 | J80: 2.83 | K80: 1 | L80: 3.73 | M80: 10.5559 | N80: 0 | O80: 10.5559 | P80: m2
A81: 23. NORMAL KAT | B81: M-A-UP-DV-23-102-R01-(+100.50 ) | C81: G_EP01 | D81: DUVAR ÜZERİ ALÇI SIVA (MLZ. + ISCILIK) | F81: KR1 | G81: Kiriş Minha | H81: 1 | I81: -1 | J81: 0.7 | K81: 1 | L81: 0.48 | M81: 0 | N81: 0.336 | O81: -0.336 | P81: m2
A82: 23. NORMAL KAT | B82: M-A-UP-DV-23-102-R01-(+100.50 ) | C82: G_EP01 | D82: DUVAR ÜZERİ ALÇI SIVA (MLZ. + ISCILIK) | F82: 41 | G82: 23. KAT ALÇI SIVA | H82: 1 | I82: 1 | J82: 1.06 | K82: 1 | L82: 3.73 | M82: 3.9538 | N82: 0 | O82: 3.9538 | P82: m2
A83: 23. NORMAL KAT | B83: M-A-UP-DV-23-102-R01-(+100.50 ) | C83: G_EP01 | D83: DUVAR ÜZERİ ALÇI SIVA (MLZ. + ISCILIK) | F83: 42 | G83: 23. KAT ALÇI SIVA | H83: 1 | I83: 1 | J83: 2.81 | K83: 1 | L83: 3.73 | M83: 10.4813 | N83: 0 | O83: 10.4813 | P83: m2
A84: 23. NORMAL KAT | B84: M-A-UP-DV-23-102-R01-(+100.50 ) | C84: G_EP01 | D84: DUVAR ÜZERİ ALÇI SIVA (MLZ. + ISCILIK) | F84: K2 | G84: Minha Kapı | H84: 1 | I84: -1 | J84: 0.8 | K84: 1 | L84: 2.44 | M84: 0 | N84: 1.952 | O84: -1.952 | P84: m2
A85: 23. NORMAL KAT | B85: M-A-UP-DV-23-102-R01-(+100.50 ) | C85: G_EP01 | D85: DUVAR ÜZERİ ALÇI SIVA (MLZ. + ISCILIK) | F85: KR1 | G85: Kiriş Minha | H85: 1 | I85: -1 | J85: 0.7 | K85: 1 | L85: 0.48 | M85: 0 | N85: 0.336 | O85: -0.336 | P85: m2
A86: 23. NORMAL KAT | B86: M-A-UP-DV-23-102-R01-(+100.50 ) | C86: G_EP01 | D86: DUVAR ÜZERİ ALÇI SIVA (MLZ. + ISCILIK) | F86: 43 | G86: 23. KAT ALÇI SIVA | H86: 1 | I86: 2 | J86: 2.44 | K86: 1 | L86: 3.73 | M86: 18.2024 | N86: 0 | O86: 18.2024 | P86: m2
A87: 23. NORMAL KAT | B87: M-A-UP-DV-23-102-R01-(+100.50 ) | C87: G_EP01 | D87: DUVAR ÜZERİ ALÇI SIVA (MLZ. + ISCILIK) | F87: KR7 | G87: Kiriş Minha | H87: 1 | I87: -2 | J87: 0.56 | K87: 1 | L87: 0.48 | M87: 0 | N87: 0.5376 | O87: -0.5376 | P87: m2
A88: 23. NORMAL KAT | B88: M-A-UP-DV-23-102-R01-(+100.50 ) | C88: G_EP01 | D88: DUVAR ÜZERİ ALÇI SIVA (MLZ. + ISCILIK) | F88: K2 | G88: Minha Kapı | H88: 1 | I88: -1 | J88: 0.8 | K88: 1 | L88: 2.44 | M88: 0 | N88: 1.952 | O88: -1.952 | P88: m2
A89: 23. NORMAL KAT | B89: M-A-UP-DV-23-102-R01-(+100.50 ) | C89: G_EP01 | D89: DUVAR ÜZERİ ALÇI SIVA (MLZ. + ISCILIK) | F89: 44 | G89: 23. KAT ALÇI SIVA | H89: 1 | I89: 1 | J89: 0.99 | K89: 1 | L89: 3.73 | M89: 3.6927 | N89: 0 | O89: 3.6927 | P89: m2
A90: 23. NORMAL KAT | B90: M-A-UP-DV-23-102-R01-(+100.50 ) | C90: G_EP01 | D90: DUVAR ÜZERİ ALÇI SIVA (MLZ. + ISCILIK) | F90: 45 | G90: 23. KAT ALÇI SIVA | H90: 1 | I90: 1 | J90: 0.99 | K90: 1 | L90: 3.25 | M90: 3.2175 | N90: 0 | O90: 3.2175 | P90: m2
A91: 23. NORMAL KAT | B91: M-A-UP-DV-23-102-R01-(+100.50 ) | C91: G_EP01 | D91: DUVAR ÜZERİ ALÇI SIVA (MLZ. + ISCILIK) | F91: 46 | G91: 23. KAT ALÇI SIVA | H91: 1 | I91: 1 | J91: 3.24 | K91: 1 | L91: 3.73 | M91: 12.0852 | N91: 0 | O91: 12.0852 | P91: m2
A92: 23. NORMAL KAT | B92: M-A-UP-DV-23-102-R01-(+100.50 ) | C92: G_EP01 | D92: DUVAR ÜZERİ ALÇI SIVA (MLZ. + ISCILIK) | F92: 47 | G92: 23. KAT ALÇI SIVA | H92: 1 | I92: 1 | J92: 2.74 | K92: 1 | L92: 3.73 | M92: 10.2202 | N92: 0 | O92: 10.2202 | P92: m2
A93: 23. NORMAL KAT | B93: M-A-UP-DV-23-102-R01-(+100.50 ) | C93: G_EP01 | D93: DUVAR ÜZERİ ALÇI SIVA (MLZ. + ISCILIK) | F93: K2 | G93: Minha Kapı | H93: 1 | I93: -1 | J93: 0.8 | K93: 1 | L93: 2.44 | M93: 0 | N93: 1.952 | O93: -1.952 | P93: m2
A94: 23. NORMAL KAT | B94: M-A-UP-DV-23-102-R01-(+100.50 ) | C94: G_EP01 | D94: DUVAR ÜZERİ ALÇI SIVA (MLZ. + ISCILIK) | F94: KR1 | G94: Kiriş Minha | H94: 1 | I94: -1 | J94: 0.7 | K94: 1 | L94: 0.48 | M94: 0 | N94: 0.336 | O94: -0.336 | P94: m2
A95: 23. NORMAL KAT | B95: M-A-UP-DV-23-102-R01-(+100.50 ) | C95: G_EP01 | D95: DUVAR ÜZERİ ALÇI SIVA (MLZ. + ISCILIK) | F95: 48 | G95: 23. KAT ALÇI SIVA | H95: 1 | I95: 2 | J95: 2.44 | K95: 1 | L95: 3.73 | M95: 18.2024 | N95: 0 | O95: 18.2024 | P95: m2
A96: 23. NORMAL KAT | B96: M-A-UP-DV-23-102-R01-(+100.50 ) | C96: G_EP01 | D96: DUVAR ÜZERİ ALÇI SIVA (MLZ. + ISCILIK) | F96: K2 | G96: Minha Kapı | H96: 1 | I96: -1 | J96: 0.8 | K96: 1 | L96: 2.44 | M96: 0 | N96: 1.952 | O96: -1.952 | P96: m2
A97: 23. NORMAL KAT | B97: M-A-UP-DV-23-102-R01-(+100.50 ) | C97: G_EP01 | D97: DUVAR ÜZERİ ALÇI SIVA (MLZ. + ISCILIK) | F97: KR7 | G97: Kiriş Minha | H97: 1 | I97: -2 | J97: 0.56 | K97: 1 | L97: 0.48 | M97: 0 | N97: 0.5376 | O97: -0.5376 | P97: m2
A98: 23. NORMAL KAT | B98: M-A-UP-DV-23-102-R01-(+100.50 ) | C98: G_EP01 | D98: DUVAR ÜZERİ ALÇI SIVA (MLZ. + ISCILIK) | F98: 49 | G98: 23. KAT ALÇI SIVA | H98: 1 | I98: 1 | J98: 1.9 | K98: 1 | L98: 3.3 | M98: 6.27 | N98: 0 | O98: 6.27 | P98: m2
A99: 23. NORMAL KAT | B99: M-A-UP-DV-23-102-R01-(+100.50 ) | C99: G_EP01 | D99: DUVAR ÜZERİ ALÇI SIVA (MLZ. + ISCILIK) | F99: 50 | G99: 23. KAT ALÇI SIVA | H99: 1 | I99: 1 | J99: 1.9 | K99: 1 | L99: 3.73 | M99: 7.087 | N99: 0 | O99: 7.087 | P99: m2
A100: 23. NORMAL KAT | B100: M-A-UP-DV-23-102-R01-(+100.50 ) | C100: G_EP01 | D100: DUVAR ÜZERİ ALÇI SIVA (MLZ. + ISCILIK) | F100: 51 | G100: 23. KAT ALÇI SIVA | H100: 1 | I100: 1 | J100: 4.01 | K100: 1 | L100: 3.73 | M100: 14.9573 | N100: 0 | O100: 14.9573 | P100: m2
A101: 23. NORMAL KAT | B101: M-A-UP-DV-23-102-R01-(+100.50 ) | C101: G_EP01 | D101: DUVAR ÜZERİ ALÇI SIVA (MLZ. + ISCILIK) | F101: KR3 | G101: Kiriş Minha | H101: 1 | I101: -1 | J101: 1 | K101: 1 | L101: 0.48 | M101: 0 | N101: 0.48 | O101: -0.48 | P101: m2
A102: 23. NORMAL KAT | B102: M-A-UP-DV-23-102-R01-(+100.50 ) | C102: G_EP01 | D102: DUVAR ÜZERİ ALÇI SIVA (MLZ. + ISCILIK) | F102: 52 | G102: 23. KAT ALÇI SIVA | H102: 1 | I102: 1 | J102: 1.2 | K102: 1 | L102: 3.73 | M102: 4.476 | N102: 0 | O102: 4.476 | P102: m2
A103: 23. NORMAL KAT | B103: M-A-UP-DV-23-102-R01-(+100.50 ) | C103: G_EP01 | D103: DUVAR ÜZERİ ALÇI SIVA (MLZ. + ISCILIK) | F103: KR1 | G103: Kiriş Minha | H103: 1 | I103: -1 | J103: 0.48 | K103: 1 | L103: 0.7 | M103: 0 | N103: 0.336 | O103: -0.336 | P103: m2
A104: 23. NORMAL KAT | B104: M-A-UP-DV-23-102-R01-(+100.50 ) | C104: G_EP01 | D104: DUVAR ÜZERİ ALÇI SIVA (MLZ. + ISCILIK) | F104: 53 | G104: 23. KAT ALÇI SIVA | H104: 1 | I104: 1 | J104: 7.55 | K104: 1 | L104: 3.73 | M104: 28.1615 | N104: 0 | O104: 28.1615 | P104: m2
A105: 23. NORMAL KAT | B105: M-A-UP-DV-23-102-R01-(+100.50 ) | C105: G_EP01 | D105: DUVAR ÜZERİ ALÇI SIVA (MLZ. + ISCILIK) | F105: K3 | G105: Minha Kapı | H105: 1 | I105: -2 | J105: 1 | K105: 1 | L105: 1 | M105: 0 | N105: 2 | O105: -2 | P105: m2
A106: 23. NORMAL KAT | B106: M-A-UP-DV-23-102-R01-(+100.50 ) | C106: G_EP01 | D106: DUVAR ÜZERİ ALÇI SIVA (MLZ. + ISCILIK) | F106: K4 | G106: Minha Kapı | H106: 1 | I106: -1 | J106: 0.65 | K106: 1 | L106: 1.8 | M106: 0 | N106: 1.17 | O106: -1.17 | P106: m2
A107: 23. NORMAL KAT | B107: M-A-UP-DV-23-102-R01-(+100.50 ) | C107: G_EP01 | D107: DUVAR ÜZERİ ALÇI SIVA (MLZ. + ISCILIK) | F107: 54 | G107: 23. KAT ALÇI SIVA | H107: 1 | I107: 1 | J107: 5.13 | K107: 1 | L107: 3.73 | M107: 19.1349 | N107: 0 | O107: 19.1349 | P107: m2
A108: 23. NORMAL KAT | B108: M-A-UP-DV-23-102-R01-(+100.50 ) | C108: G_EP01 | D108: DUVAR ÜZERİ ALÇI SIVA (MLZ. + ISCILIK) | F108: K1 | G108: Minha Kapı | H108: 1 | I108: -1 | J108: 1.1 | K108: 1 | L108: 2.44 | M108: 0 | N108: 2.684 | O108: -2.684 | P108: m2
A109: 23. NORMAL KAT | B109: M-A-UP-DV-23-102-R01-(+100.50 ) | C109: G_EP01 | D109: DUVAR ÜZERİ ALÇI SIVA (MLZ. + ISCILIK) | F109: KR4 | G109: Kiriş Minha | H109: 1 | I109: -1 | J109: 0.52 | K109: 1 | L109: 0.48 | M109: 0 | N109: 0.2496 | O109: -0.2496 | P109: m2
A110: 23. NORMAL KAT | B110: M-A-UP-DV-23-102-R01-(+100.50 ) | C110: G_EP01 | D110: DUVAR ÜZERİ ALÇI SIVA (MLZ. + ISCILIK) | F110: 55 | G110: 23. KAT ALÇI SIVA | H110: 1 | I110: 1 | J110: 2.69 | K110: 1 | L110: 3.73 | M110: 10.0337 | N110: 0 | O110: 10.0337 | P110: m2
A111: 23. NORMAL KAT | B111: M-A-UP-DV-23-102-R01-(+100.50 ) | C111: G_EP01 | D111: DUVAR ÜZERİ ALÇI SIVA (MLZ. + ISCILIK) | F111: K2 | G111: Minha Kapı | H111: 1 | I111: -1 | J111: 0.8 | K111: 1 | L111: 2.44 | M111: 0 | N111: 1.952 | O111: -1.952 | P111: m2
A112: 23. NORMAL KAT | B112: M-A-UP-DV-23-102-R01-(+100.50 ) | C112: G_EP01 | D112: DUVAR ÜZERİ ALÇI SIVA (MLZ. + ISCILIK) | F112: 56 | G112: 23. KAT ALÇI SIVA | H112: 1 | I112: 2 | J112: 2.44 | K112: 1 | L112: 3.73 | M112: 18.2024 | N112: 0 | O112: 18.2024 | P112: m2
A113: 23. NORMAL KAT | B113: M-A-UP-DV-23-102-R01-(+100.50 ) | C113: G_EP01 | D113: DUVAR ÜZERİ ALÇI SIVA (MLZ. + ISCILIK) | F113: K2 | G113: Minha Kapı | H113: 1 | I113: -1 | J113: 0.8 | K113: 1 | L113: 2.44 | M113: 0 | N113: 1.952 | O113: -1.952 | P113: m2
A114: 23. NORMAL KAT | B114: M-A-UP-DV-23-102-R01-(+100.50 ) | C114: G_EP01 | D114: DUVAR ÜZERİ ALÇI SIVA (MLZ. + ISCILIK) | F114: 57 | G114: 23. KAT ALÇI SIVA | H114: 1 | I114: 2 | J114: 1.93 | K114: 1 | L114: 3.73 | M114: 14.3978 | N114: 0 | O114: 14.3978 | P114: m2
A115: 23. NORMAL KAT | B115: M-A-UP-DV-23-102-R01-(+100.50 ) | C115: G_EP01 | D115: DUVAR ÜZERİ ALÇI SIVA (MLZ. + ISCILIK) | F115: 58 | G115: 23. KAT ALÇI SIVA | H115: 1 | I115: 1 | J115: 3.62 | K115: 1 | L115: 3.73 | M115: 13.5026 | N115: 0 | O115: 13.5026 | P115: m2
A116: 23. NORMAL KAT | B116: M-A-UP-DV-23-102-R01-(+100.50 ) | C116: G_EP01 | D116: DUVAR ÜZERİ ALÇI SIVA (MLZ. + ISCILIK) | F116: K2 | G116: Minha Kapı | H116: 1 | I116: -1 | J116: 0.8 | K116: 1 | L116: 2.44 | M116: 0 | N116: 1.952 | O116: -1.952 | P116: m2
A117: 23. NORMAL KAT | B117: M-A-UP-DV-23-102-R01-(+100.50 ) | C117: G_EP01 | D117: DUVAR ÜZERİ ALÇI SIVA (MLZ. + ISCILIK) | F117: 59 | G117: 23. KAT ALÇI SIVA | H117: 1 | I117: 2 | J117: 3.49 | K117: 1 | L117: 3.73 | M117: 26.0354 | N117: 0 | O117: 26.0354 | P117: m2
A118: 23. NORMAL KAT | B118: M-A-UP-DV-23-102-R01-(+100.50 ) | C118: G_EP01 | D118: DUVAR ÜZERİ ALÇI SIVA (MLZ. + ISCILIK) | F118: K2 | G118: Minha Kapı | H118: 1 | I118: -1 | J118: 0.8 | K118: 1 | L118: 2.44 | M118: 0 | N118: 1.952 | O118: -1.952 | P118: m2
A119: 23. NORMAL KAT | B119: M-A-UP-DV-23-102-R01-(+100.50 ) | C119: G_EP01 | D119: DUVAR ÜZERİ ALÇI SIVA (MLZ. + ISCILIK) | F119: 60 | G119: 23. KAT ALÇI SIVA | H119: 1 | I119: 1 | J119: 1.28 | K119: 1 | L119: 3.73 | M119: 4.7744 | N119: 0 | O119: 4.7744 | P119: m2
A120: 23. NORMAL KAT | B120: M-A-UP-DV-23-102-R01-(+100.50 ) | C120: G_EP01 | D120: DUVAR ÜZERİ ALÇI SIVA (MLZ. + ISCILIK) | F120: 61 | G120: 23. KAT ALÇI SIVA | H120: 1 | I120: 1 | J120: 4.7 | K120: 1 | L120: 3.25 | M120: 15.275 | N120: 0 | O120: 15.275 | P120: m2
A121: 23. NORMAL KAT | B121: M-A-UP-DV-23-102-R01-(+100.50 ) | C121: G_EP01 | D121: DUVAR ÜZERİ ALÇI SIVA (MLZ. + ISCILIK) | F121: 62 | G121: 23. KAT ALÇI SIVA | H121: 1 | I121: 1 | J121: 4 | K121: 1 | L121: 3.73 | M121: 14.92 | N121: 0 | O121: 14.92 | P121: m2
A122: 23. NORMAL KAT | B122: M-A-UP-DV-23-102-R01-(+100.50 ) | C122: G_EP01 | D122: DUVAR ÜZERİ ALÇI SIVA (MLZ. + ISCILIK) | F122: 63 | G122: 23. KAT ALÇI SIVA | H122: 1 | I122: 2 | J122: 3.99 | K122: 1 | L122: 3.73 | M122: 29.7654 | N122: 0 | O122: 29.7654 | P122: m2
A123: 23. NORMAL KAT | B123: M-A-UP-DV-23-102-R01-(+100.50 ) | C123: G_EP01 | D123: DUVAR ÜZERİ ALÇI SIVA (MLZ. + ISCILIK) | F123: K1 | G123: Minha Kapı | H123: 1 | I123: -2 | J123: 1.1 | K123: 1 | L123: 2.44 | M123: 0 | N123: 5.368 | O123: -5.368 | P123: m2
A124: 23. NORMAL KAT | B124: M-A-UP-DV-23-102-R01-(+100.50 ) | C124: G_EP01 | D124: DUVAR ÜZERİ ALÇI SIVA (MLZ. + ISCILIK) | F124: 64 | G124: 23. KAT ALÇI SIVA | H124: 1 | I124: 2 | J124: 2.08 | K124: 1 | L124: 3.73 | M124: 15.5168 | N124: 0 | O124: 15.5168 | P124: m2
A125: 23. NORMAL KAT | B125: M-A-UP-DV-23-102-R01-(+100.50 ) | C125: G_EP01 | D125: DUVAR ÜZERİ ALÇI SIVA (MLZ. + ISCILIK) | F125: K2 | G125: Minha Kapı | H125: 1 | I125: -2 | J125: 0.8 | K125: 1 | L125: 2.44 | M125: 0 | N125: 3.904 | O125: -3.904 | P125: m2
A126: 23. NORMAL KAT | B126: M-A-UP-DV-23-102-R01-(+100.50 ) | C126: G_EP01 | D126: DUVAR ÜZERİ ALÇI SIVA (MLZ. + ISCILIK) | F126: 65 | G126: 23. KAT ALÇI SIVA | H126: 1 | I126: 2 | J126: 3.42 | K126: 1 | L126: 3.73 | M126: 25.5132 | N126: 0 | O126: 25.5132 | P126: m2
A127: 23. NORMAL KAT | B127: M-A-UP-DV-23-102-R01-(+100.50 ) | C127: G_EP01 | D127: DUVAR ÜZERİ ALÇI SIVA (MLZ. + ISCILIK) | F127: 66 | G127: 23. KAT ALÇI SIVA | H127: 1 | I127: 4 | J127: 1.93 | K127: 1 | L127: 3.73 | M127: 28.7956 | N127: 0 | O127: 28.7956 | P127: m2
A128: 23. NORMAL KAT | B128: M-A-UP-DV-23-102-R01-(+100.50 ) | C128: G_EP01 | D128: DUVAR ÜZERİ ALÇI SIVA (MLZ. + ISCILIK) | F128: K2 | G128: Minha Kapı | H128: 1 | I128: -2 | J128: 0.8 | K128: 1 | L128: 2.44 | M128: 0 | N128: 3.904 | O128: -3.904 | P128: m2
A129: 23. NORMAL KAT | B129: M-A-UP-DV-23-102-R01-(+100.50 ) | C129: G_EP01 | D129: DUVAR ÜZERİ ALÇI SIVA (MLZ. + ISCILIK) | F129: 67 | G129: 23. KAT ALÇI SIVA | H129: 1 | I129: 4 | J129: 3.22 | K129: 1 | L129: 3.73 | M129: 48.0424 | N129: 0 | O129: 48.0424 | P129: m2
A130: 23. NORMAL KAT | B130: M-A-UP-DV-23-102-R01-(+100.50 ) | C130: G_EP01 | D130: DUVAR ÜZERİ ALÇI SIVA (MLZ. + ISCILIK) | F130: 68 | G130: 23. KAT ALÇI SIVA | H130: 1 | I130: 1 | J130: 10.14 | K130: 1 | L130: 3.73 | M130: 37.8222 | N130: 0 | O130: 37.8222 | P130: m2
A131: 23. NORMAL KAT | B131: M-A-UP-DV-23-102-R01-(+100.50 ) | C131: G_EP01 | D131: DUVAR ÜZERİ ALÇI SIVA (MLZ. + ISCILIK) | F131: K3 | G131: Minha Kapı | H131: 1 | I131: -2 | J131: 1 | K131: 1 | L131: 1 | M131: 0 | N131: 2 | O131: -2 | P131: m2
A132: 23. NORMAL KAT | B132: M-A-UP-DV-23-102-R01-(+100.50 ) | C132: G_EP01 | D132: DUVAR ÜZERİ ALÇI SIVA (MLZ. + ISCILIK) | F132: K4 | G132: Minha Kapı | H132: 1 | I132: -1 | J132: 0.65 | K132: 1 | L132: 1.8 | M132: 0 | N132: 1.17 | O132: -1.17 | P132: m2
A133: 23. NORMAL KAT | B133: M-A-UP-DV-23-102-R01-(+100.50 ) | C133: G_EP01 | D133: DUVAR ÜZERİ ALÇI SIVA (MLZ. + ISCILIK) | F133: 69 | G133: 23. KAT ALÇI SIVA | H133: 1 | I133: 2 | J133: 2.51 | K133: 1 | L133: 3.73 | M133: 18.7246 | N133: 0 | O133: 18.7246 | P133: m2
A134: 23. NORMAL KAT | B134: M-A-UP-DV-23-102-R01-(+100.50 ) | C134: G_EP01 | D134: DUVAR ÜZERİ ALÇI SIVA (MLZ. + ISCILIK) | F134: K1 | G134: Minha Kapı | H134: 1 | I134: -2 | J134: 1.1 | K134: 1 | L134: 2.44 | M134: 0 | N134: 5.368 | O134: -5.368 | P134: m2
A135: 23. NORMAL KAT | B135: M-A-UP-DV-23-102-R01-(+100.50 ) | C135: G_EP01 | D135: DUVAR ÜZERİ ALÇI SIVA (MLZ. + ISCILIK) | F135: 70 | G135: 23. KAT ALÇI SIVA | H135: 1 | I135: 2 | J135: 1.44 | K135: 1 | L135: 3.73 | M135: 10.7424 | N135: 0 | O135: 10.7424 | P135: m2
A136: 23. NORMAL KAT | B136: M-A-UP-DV-23-102-R01-(+100.50 ) | C136: G_EP01 | D136: DUVAR ÜZERİ ALÇI SIVA (MLZ. + ISCILIK) | F136: 71 | G136: 23. KAT ALÇI SIVA | H136: 1 | I136: 2 | J136: 0.67 | K136: 1 | L136: 3.73 | M136: 4.9982 | N136: 0 | O136: 4.9982 | P136: m2
A137: 23. NORMAL KAT | B137: M-A-UP-DV-23-102-R01-(+100.50 ) | C137: G_EP01 | D137: DUVAR ÜZERİ ALÇI SIVA (MLZ. + ISCILIK) | F137: 72 | G137: 23. KAT ALÇI SIVA | H137: 1 | I137: 2 | J137: 0.97 | K137: 1 | L137: 3.73 | M137: 7.2362 | N137: 0 | O137: 7.2362 | P137: m2
A138: 23. NORMAL KAT | B138: M-A-UP-DV-23-102-R01-(+100.50 ) | C138: G_EP01 | D138: DUVAR ÜZERİ ALÇI SIVA (MLZ. + ISCILIK) | F138: 73 | G138: 23. KAT ALÇI SIVA | H138: 1 | I138: 2 | J138: 5.98 | K138: 1 | L138: 3.73 | M138: 44.6108 | N138: 0 | O138: 44.6108 | P138: m2
A139: 23. NORMAL KAT | B139: M-A-UP-DV-23-102-R01-(+100.50 ) | C139: G_EP01 | D139: DUVAR ÜZERİ ALÇI SIVA (MLZ. + ISCILIK) | F139: K2 | G139: Minha Kapı | H139: 1 | I139: -4 | J139: 0.8 | K139: 1 | L139: 2.44 | M139: 0 | N139: 7.808 | O139: -7.808 | P139: m2
A140: 23. NORMAL KAT | B140: M-A-UP-DV-23-102-R01-(+100.50 ) | C140: G_EP01 | D140: DUVAR ÜZERİ ALÇI SIVA (MLZ. + ISCILIK) | F140: KR4 | G140: Kiriş Minha | H140: 1 | I140: -2 | J140: 0.52 | K140: 1 | L140: 0.48 | M140: 0 | N140: 0.4992 | O140: -0.4992 | P140: m2
A141: 23. NORMAL KAT | B141: M-A-UP-DV-23-102-R01-(+100.50 ) | C141: G_EP01 | D141: DUVAR ÜZERİ ALÇI SIVA (MLZ. + ISCILIK) | F141: 74 | G141: 23. KAT ALÇI SIVA | H141: 1 | I141: 2 | J141: 2.66 | K141: 1 | L141: 3.73 | M141: 19.8436 | N141: 0 | O141: 19.8436 | P141: m2
A142: 23. NORMAL KAT | B142: M-A-UP-DV-23-102-R01-(+100.50 ) | C142: G_EP01 | D142: DUVAR ÜZERİ ALÇI SIVA (MLZ. + ISCILIK) | F142: K2 | G142: Minha Kapı | H142: 1 | I142: -2 | J142: 0.8 | K142: 1 | L142: 2.44 | M142: =IF(I142>0,H142*I142*J142*K142*L142,0) -> 0 | N142: =IF(I142<0,H142*I142*J142*K142*L142*-1,0) -> 3.904 | O142: =+M142-N142 -> -3.904 | P142: m2
A143: 23. NORMAL KAT | B143: M-A-UP-DV-23-102-R01-(+100.50 ) | C143: G_EP01 | D143: DUVAR ÜZERİ ALÇI SIVA (MLZ. + ISCILIK) | F143: 75 | G143: 23. KAT ALÇI SIVA | H143: 1 | I143: 2 | J143: 0.77 | K143: 1 | L143: 3.73 | M143: 5.7442 | N143: 0 | O143: 5.7442 | P143: m2
A144: 23. NORMAL KAT | B144: M-A-UP-DV-23-102-R01-(+100.50 ) | C144: G_EP01 | D144: DUVAR ÜZERİ ALÇI SIVA (MLZ. + ISCILIK) | F144: 76 | G144: 23. KAT ALÇI SIVA | H144: 1 | I144: 2 | J144: 0.72 | K144: 1 | L144: 3.73 | M144: 5.3712 | N144: 0 | O144: 5.3712 | P144: m2
A145: 23. NORMAL KAT | B145: M-A-UP-DV-23-102-R01-(+100.50 ) | C145: G_EP01 | D145: DUVAR ÜZERİ ALÇI SIVA (MLZ. + ISCILIK) | F145: 77 | G145: 23. KAT ALÇI SIVA | H145: 1 | I145: 2 | J145: 1.54 | K145: 1 | L145: 3.73 | M145: 11.4884 | N145: 0 | O145: 11.4884 | P145: m2
A146: 23. NORMAL KAT | B146: M-A-UP-DV-23-102-R01-(+100.50 ) | C146: G_EP01 | D146: DUVAR ÜZERİ ALÇI SIVA (MLZ. + ISCILIK) | F146: 78 | G146: 23. KAT ALÇI SIVA | H146: 1 | I146: 2 | J146: 2.61 | K146: 1 | L146: 3.73 | M146: 19.4706 | N146: 0 | O146: 19.4706 | P146: m2
A147: 23. NORMAL KAT | B147: M-A-UP-DV-23-102-R01-(+100.50 ) | C147: G_EP01 | D147: DUVAR ÜZERİ ALÇI SIVA (MLZ. + ISCILIK) | F147: 79 | G147: 23. KAT ALÇI SIVA | H147: 1 | I147: 4 | J147: 1.08 | K147: 1 | L147: 3.73 | M147: 16.1136 | N147: 0 | O147: 16.1136 | P147: m2
A148: 23. NORMAL KAT | B148: M-A-UP-DV-23-102-R01-(+100.50 ) | C148: G_EP01 | D148: DUVAR ÜZERİ ALÇI SIVA (MLZ. + ISCILIK) | F148: 80 | G148: 23. KAT ALÇI SIVA | H148: 1 | I148: 4 | J148: 1.22 | K148: 1 | L148: 3.73 | M148: 18.2024 | N148: 0 | O148: 18.2024 | P148: m2
A149: 23. NORMAL KAT | B149: M-A-UP-DV-23-102-R01-(+100.50 ) | C149: G_EP01 | D149: DUVAR ÜZERİ ALÇI SIVA (MLZ. + ISCILIK) | F149: 81 | G149: 23. KAT ALÇI SIVA | H149: 1 | I149: 4 | J149: 0.1 | K149: 1 | L149: 3.73 | M149: 1.492 | N149: 0 | O149: 1.492 | P149: m2
A150: 23. NORMAL KAT | B150: M-A-UP-DV-23-102-R01-(+100.50 ) | C150: G_EP01 | D150: DUVAR ÜZERİ ALÇI SIVA (MLZ. + ISCILIK) | F150: 82 | G150: 23. KAT ALÇI SIVA | H150: 1 | I150: 4 | J150: 0.55 | K150: 1 | L150: 3.73 | M150: 8.206 | N150: 0 | O150: 8.206 | P150: m2
A151: 23. NORMAL KAT | B151: M-A-UP-DV-23-102-R01-(+100.50 ) | C151: G_EP01 | D151: DUVAR ÜZERİ ALÇI SIVA (MLZ. + ISCILIK) | F151: 83 | G151: 23. KAT ALÇI SIVA | H151: 1 | I151: 4 | J151: 1.13 | K151: 1 | L151: 3.73 | M151: 16.8596 | N151: 0 | O151: 16.8596 | P151: m2
A152: 23. NORMAL KAT | B152: M-A-UP-DV-23-102-R01-(+100.50 ) | C152: G_EP01 | D152: DUVAR ÜZERİ ALÇI SIVA (MLZ. + ISCILIK) | F152: 84 | G152: 23. KAT ALÇI SIVA | H152: 1 | I152: 2 | J152: 2.93 | K152: 1 | L152: 3.73 | M152: 21.8578 | N152: 0 | O152: 21.8578 | P152: m2
A153: 23. NORMAL KAT | B153: M-A-UP-DV-23-102-R01-(+100.50 ) | C153: G_EP01 | D153: DUVAR ÜZERİ ALÇI SIVA (MLZ. + ISCILIK) | F153: K2 | G153: Minha Kapı | H153: 1 | I153: -2 | J153: 0.8 | K153: 1 | L153: 2.44 | M153: 0 | N153: 3.904 | O153: -3.904 | P153: m2
A154: 23. NORMAL KAT | B154: M-A-UP-DV-23-102-R01-(+100.50 ) | C154: G_EP01 | D154: DUVAR ÜZERİ ALÇI SIVA (MLZ. + ISCILIK) | F154: KR8 | G154: Kiriş Minha | H154: 1 | I154: -2 | J154: 0.42 | K154: 1 | L154: 0.48 | M154: 0 | N154: 0.4032 | O154: -0.4032 | P154: m2
A155: 23. NORMAL KAT | B155: M-A-UP-DV-23-102-R01-(+100.50 ) | C155: G_EP01 | D155: DUVAR ÜZERİ ALÇI SIVA (MLZ. + ISCILIK) | F155: 85 | G155: 23. KAT ALÇI SIVA | H155: 1 | I155: 2 | J155: 2.25 | K155: 1 | L155: 3.73 | M155: 16.785 | N155: 0 | O155: 16.785 | P155: m2
A156: 23. NORMAL KAT | B156: M-A-UP-DV-23-102-R01-(+100.50 ) | C156: G_EP01 | D156: DUVAR ÜZERİ ALÇI SIVA (MLZ. + ISCILIK) | F156: KR8 | G156: Kiriş Minha | H156: 1 | I156: -2 | J156: 0.42 | K156: 1 | L156: 0.48 | M156: 0 | N156: 0.4032 | O156: -0.4032 | P156: m2
A157: 23. NORMAL KAT | B157: M-A-UP-DV-23-102-R01-(+100.50 ) | C157: G_EP01 | D157: DUVAR ÜZERİ ALÇI SIVA (MLZ. + ISCILIK) | F157: 86 | G157: 23. KAT ALÇI SIVA | H157: 1 | I157: 2 | J157: 2.3 | K157: 1 | L157: 3.25 | M157: 14.95 | N157: 0 | O157: 14.95 | P157: m2
A158: 23. NORMAL KAT | B158: M-A-UP-DV-23-102-R01-(+100.50 ) | C158: G_EP01 | D158: DUVAR ÜZERİ ALÇI SIVA (MLZ. + ISCILIK) | F158: 87 | G158: 23. KAT ALÇI SIVA | H158: 1 | I158: 2 | J158: 2.3 | K158: 1 | L158: 3.25 | M158: 14.95 | N158: 0 | O158: 14.95 | P158: m2
A159: 23. NORMAL KAT | B159: M-A-UP-DV-23-102-R01-(+100.50 ) | C159: G_EP01 | D159: DUVAR ÜZERİ ALÇI SIVA (MLZ. + ISCILIK) | F159: 88 | G159: 23. KAT ALÇI SIVA | H159: 1 | I159: 2 | J159: 0.52 | K159: 1 | L159: 3.25 | M159: 3.38 | N159: 0 | O159: 3.38 | P159: m2
A160: 23. NORMAL KAT | B160: M-A-UP-DV-23-102-R01-(+100.50 ) | C160: G_EP01 | D160: DUVAR ÜZERİ ALÇI SIVA (MLZ. + ISCILIK) | F160: 89 | G160: 23. KAT ALÇI SIVA | H160: 1 | I160: 2 | J160: 1.9 | K160: 1 | L160: 3.73 | M160: 14.174 | N160: 0 | O160: 14.174 | P160: m2
A161: 23. NORMAL KAT | B161: M-A-UP-DV-23-102-R01-(+100.50 ) | C161: G_EP01 | D161: DUVAR ÜZERİ ALÇI SIVA (MLZ. + ISCILIK) | F161: 90 | G161: 23. KAT ALÇI SIVA | H161: 1 | I161: 1 | J161: 4.05 | K161: 1 | L161: 3.73 | M161: 15.1065 | N161: 0 | O161: 15.1065 | P161: m2
A162: 23. NORMAL KAT | B162: M-A-UP-DV-23-102-R01-(+100.50 ) | C162: G_EP01 | D162: DUVAR ÜZERİ ALÇI SIVA (MLZ. + ISCILIK) | F162: KR6 | G162: Kiriş Minha | H162: 1 | I162: -1 | J162: 0.6 | K162: 1 | L162: 0.48 | M162: 0 | N162: 0.288 | O162: -0.288 | P162: m2
A163: 23. NORMAL KAT | B163: M-A-UP-DV-23-102-R01-(+100.50 ) | C163: G_EP01 | D163: DUVAR ÜZERİ ALÇI SIVA (MLZ. + ISCILIK) | F163: 91 | G163: 23. KAT ALÇI SIVA | H163: 1 | I163: 1 | J163: 4.03 | K163: 1 | L163: 3.73 | M163: 15.0319 | N163: 0 | O163: 15.0319 | P163: m2
A164: 23. NORMAL KAT | B164: M-A-UP-DV-23-102-R01-(+100.50 ) | C164: G_EP01 | D164: DUVAR ÜZERİ ALÇI SIVA (MLZ. + ISCILIK) | F164: 92 | G164: 23. KAT ALÇI SIVA | H164: 1 | I164: 1 | J164: 1.04 | K164: 1 | L164: 3.73 | M164: 3.8792 | N164: 0 | O164: 3.8792 | P164: m2
A165: 23. NORMAL KAT | B165: M-A-UP-DV-23-102-R01-(+100.50 ) | C165: G_EP01 | D165: DUVAR ÜZERİ ALÇI SIVA (MLZ. + ISCILIK) | F165: 93 | G165: 23. KAT ALÇI SIVA | H165: 1 | I165: 1 | J165: 1.85 | K165: 1 | L165: 3.73 | M165: 6.9005 | N165: 0 | O165: 6.9005 | P165: m2
A166: 23. NORMAL KAT | B166: M-A-UP-DV-23-102-R01-(+100.50 ) | C166: G_EP01 | D166: DUVAR ÜZERİ ALÇI SIVA (MLZ. + ISCILIK) | F166: 94 | G166: 23. KAT ALÇI SIVA | H166: 1 | I166: 1 | J166: 1.69 | K166: 1 | L166: 3.73 | M166: 6.3037 | N166: 0 | O166: 6.3037 | P166: m2
A167: 23. NORMAL KAT | B167: M-A-UP-DV-23-102-R01-(+100.50 ) | C167: G_EP01 | D167: DUVAR ÜZERİ ALÇI SIVA (MLZ. + ISCILIK) | F167: K1 | G167: Minha Kapı | H167: 1 | I167: -1 | J167: 1.1 | K167: 1 | L167: 2.44 | M167: 0 | N167: 2.684 | O167: -2.684 | P167: m2
A168: 23. NORMAL KAT | B168: M-A-UP-DV-23-102-R01-(+100.50 ) | C168: G_EP01 | D168: DUVAR ÜZERİ ALÇI SIVA (MLZ. + ISCILIK) | F168: 95 | G168: 23. KAT ALÇI SIVA | H168: 1 | I168: 1 | J168: 2.6 | K168: 1 | L168: 3.73 | M168: 9.698 | N168: 0 | O168: 9.698 | P168: m2
A169: 23. NORMAL KAT | B169: M-A-UP-DV-23-102-R01-(+100.50 ) | C169: G_EP01 | D169: DUVAR ÜZERİ ALÇI SIVA (MLZ. + ISCILIK) | F169: K1 | G169: Minha Kapı | H169: 1 | I169: -1 | J169: 1.1 | K169: 1 | L169: 2.44 | M169: 0 | N169: 2.684 | O169: -2.684 | P169: m2
A170: 23. NORMAL KAT | B170: M-A-UP-DV-23-102-R01-(+100.50 ) | C170: G_EP01 | D170: DUVAR ÜZERİ ALÇI SIVA (MLZ. + ISCILIK) | F170: 96 | G170: 23. KAT ALÇI SIVA | H170: 1 | I170: 3 | J170: 2 | K170: 1 | L170: 3.73 | M170: 22.38 | N170: 0 | O170: 22.38 | P170: m2
A171: 23. NORMAL KAT | B171: M-A-UP-DV-23-102-R01-(+100.50 ) | C171: G_EP01 | D171: DUVAR ÜZERİ ALÇI SIVA (MLZ. + ISCILIK) | F171: 97 | G171: 23. KAT ALÇI SIVA | H171: 1 | I171: 1 | J171: 2.46 | K171: 1 | L171: 3.73 | M171: 9.1758 | N171: 0 | O171: 9.1758 | P171: m2
A172: 23. NORMAL KAT | B172: M-A-UP-DV-23-102-R01-(+100.50 ) | C172: G_EP01 | D172: DUVAR ÜZERİ ALÇI SIVA (MLZ. + ISCILIK) | F172: 98 | G172: 23. KAT ALÇI SIVA | H172: 1 | I172: 1 | J172: 0.15 | K172: 1 | L172: 3.73 | M172: 0.5595 | N172: 0 | O172: 0.5595 | P172: m2
A173: 23. NORMAL KAT | B173: M-A-UP-DV-23-102-R01-(+100.50 ) | C173: G_EP01 | D173: DUVAR ÜZERİ ALÇI SIVA (MLZ. + ISCILIK) | F173: 99 | G173: 23. KAT ALÇI SIVA | H173: 1 | I173: 1 | J173: 6.23 | K173: 1 | L173: 3.73 | M173: 23.2379 | N173: 0 | O173: 23.2379 | P173: m2
A174: 23. NORMAL KAT | B174: M-A-UP-DV-23-102-R01-(+100.50 ) | C174: G_EP01 | D174: DUVAR ÜZERİ ALÇI SIVA (MLZ. + ISCILIK) | F174: KR1 | G174: Kiriş Minha | H174: 1 | I174: -1 | J174: 0.7 | K174: 1 | L174: 0.48 | M174: 0 | N174: 0.336 | O174: -0.336 | P174: m2
A175: 23. NORMAL KAT | B175: M-A-UP-DV-23-102-R01-(+100.50 ) | C175: G_EP01 | D175: DUVAR ÜZERİ ALÇI SIVA (MLZ. + ISCILIK) | F175: 100 | G175: 23. KAT ALÇI SIVA | H175: 1 | I175: 1 | J175: 1.1 | K175: 1 | L175: 3.73 | M175: 4.103 | N175: 0 | O175: 4.103 | P175: m2
A176: 23. NORMAL KAT | B176: M-A-UP-DV-23-102-R01-(+100.50 ) | C176: G_EP01 | D176: DUVAR ÜZERİ ALÇI SIVA (MLZ. + ISCILIK) | F176: KR3 | G176: Kiriş Minha | H176: 1 | I176: -1 | J176: 0.48 | K176: 1 | L176: 1 | M176: 0 | N176: 0.48 | O176: -0.48 | P176: m2
A177: 23. NORMAL KAT | B177: M-A-UP-DV-23-102-R01-(+100.50 ) | C177: G_EP01 | D177: DUVAR ÜZERİ ALÇI SIVA (MLZ. + ISCILIK) | F177: 101 | G177: 23. KAT ALÇI SIVA | H177: 1 | I177: 1 | J177: 1.1 | K177: 1 | L177: 3.73 | M177: 4.103 | N177: 0 | O177: 4.103 | P177: m2
A178: 23. NORMAL KAT | B178: M-A-UP-DV-23-102-R01-(+100.50 ) | C178: G_EP01 | D178: DUVAR ÜZERİ ALÇI SIVA (MLZ. + ISCILIK) | F178: KR1 | G178: Kiriş Minha | H178: 1 | I178: -1 | J178: 0.7 | K178: 1 | L178: 0.48 | M178: 0 | N178: 0.336 | O178: -0.336 | P178: m2
A179: 23. NORMAL KAT | B179: M-A-UP-DV-23-102-R01-(+100.50 ) | C179: G_EP01 | D179: DUVAR ÜZERİ ALÇI SIVA (MLZ. + ISCILIK) | F179: 102 | G179: 23. KAT ALÇI SIVA | H179: 1 | I179: 1 | J179: 1.38 | K179: 1 | L179: 3.73 | M179: 5.1474 | N179: 0 | O179: 5.1474 | P179: m2
A180: 23. NORMAL KAT | B180: M-A-UP-DV-23-102-R01-(+100.50 ) | C180: G_EP01 | D180: DUVAR ÜZERİ ALÇI SIVA (MLZ. + ISCILIK) | F180: 103 | G180: 23. KAT ALÇI SIVA | H180: 1 | I180: 1 | J180: 2.82 | K180: 1 | L180: 3.73 | M180: 10.5186 | N180: 0 | O180: 10.5186 | P180: m2
A181: 23. NORMAL KAT | B181: M-A-UP-DV-23-102-R01-(+100.50 ) | C181: G_EP01 | D181: DUVAR ÜZERİ ALÇI SIVA (MLZ. + ISCILIK) | F181: K2 | G181: Minha Kapı | H181: 1 | I181: -1 | J181: 0.8 | K181: 1 | L181: 2.44 | M181: 0 | N181: 1.952 | O181: -1.952 | P181: m2
A182: 23. NORMAL KAT | B182: M-A-UP-DV-23-102-R01-(+100.50 ) | C182: G_EP01 | D182: DUVAR ÜZERİ ALÇI SIVA (MLZ. + ISCILIK) | F182: 104 | G182: 23. KAT ALÇI SIVA | H182: 1 | I182: 1 | J182: 0.53 | K182: 1 | L182: 3.73 | M182: 1.9769 | N182: 0 | O182: 1.9769 | P182: m2
A183: 23. NORMAL KAT | B183: M-A-UP-DV-23-102-R01-(+100.50 ) | C183: G_EP01 | D183: DUVAR ÜZERİ ALÇI SIVA (MLZ. + ISCILIK) | F183: 105 | G183: 23. KAT ALÇI SIVA | H183: 1 | I183: 1 | J183: 0.26 | K183: 1 | L183: 2.95 | M183: 0.767 | N183: 0 | O183: 0.767 | P183: m2
A184: 23. NORMAL KAT | B184: M-A-UP-DV-23-102-R01-(+100.50 ) | C184: G_EP01 | D184: DUVAR ÜZERİ ALÇI SIVA (MLZ. + ISCILIK) | F184: 106 | G184: 23. KAT ALÇI SIVA | H184: 1 | I184: 1 | J184: 2.8 | K184: 1 | L184: 2.95 | M184: 8.26 | N184: 0 | O184: 8.26 | P184: m2
A185: 23. NORMAL KAT | B185: M-A-UP-DV-23-102-R01-(+100.50 ) | C185: G_EP01 | D185: DUVAR ÜZERİ ALÇI SIVA (MLZ. + ISCILIK) | F185: 107 | G185: 23. KAT ALÇI SIVA | H185: 1 | I185: 2 | J185: 2.57 | K185: 1 | L185: 3.73 | M185: 19.1722 | N185: 0 | O185: 19.1722 | P185: m2
A186: 23. NORMAL KAT | B186: M-A-UP-DV-23-102-R01-(+100.50 ) | C186: G_EP01 | D186: DUVAR ÜZERİ ALÇI SIVA (MLZ. + ISCILIK) | F186: K2 | G186: Minha Kapı | H186: 1 | I186: -1 | J186: 0.8 | K186: 1 | L186: 2.44 | M186: 0 | N186: 1.952 | O186: -1.952 | P186: m2
A187: 23. NORMAL KAT | B187: M-A-UP-DV-23-102-R01-(+100.50 ) | C187: G_EP01 | D187: DUVAR ÜZERİ ALÇI SIVA (MLZ. + ISCILIK) | F187: 108 | G187: 23. KAT ALÇI SIVA | H187: 1 | I187: 2 | J187: 1.28 | K187: 1 | L187: 3.73 | M187: 9.5488 | N187: 0 | O187: 9.5488 | P187: m2
A188: 23. NORMAL KAT | B188: M-A-UP-DV-23-102-R01-(+100.50 ) | C188: G_EP01 | D188: DUVAR ÜZERİ ALÇI SIVA (MLZ. + ISCILIK) | F188: 109 | G188: 23. KAT ALÇI SIVA | H188: 1 | I188: 1 | J188: 5.81 | K188: 1 | L188: 3.73 | M188: 21.6713 | N188: 0 | O188: 21.6713 | P188: m2
A189: 23. NORMAL KAT | B189: M-A-UP-DV-23-102-R01-(+100.50 ) | C189: G_EP01 | D189: DUVAR ÜZERİ ALÇI SIVA (MLZ. + ISCILIK) | F189: K3 | G189: Minha Kapı | H189: 1 | I189: -1 | J189: 1 | K189: 1 | L189: 1 | M189: 0 | N189: 1 | O189: -1 | P189: m2
A190: 23. NORMAL KAT | B190: M-A-UP-DV-23-102-R01-(+100.50 ) | C190: G_EP01 | D190: DUVAR ÜZERİ ALÇI SIVA (MLZ. + ISCILIK) | F190: 110 | G190: 23. KAT ALÇI SIVA | H190: 1 | I190: 1 | J190: 4.48 | K190: 1 | L190: 3.73 | M190: 16.7104 | N190: 0 | O190: 16.7104 | P190: m2
A191: 23. NORMAL KAT | B191: M-A-UP-DV-23-102-R01-(+100.50 ) | C191: G_EP01 | D191: DUVAR ÜZERİ ALÇI SIVA (MLZ. + ISCILIK) | F191: K1 | G191: Minha Kapı | H191: 1 | I191: -1 | J191: 1.1 | K191: 1 | L191: 2.44 | M191: 0 | N191: 2.684 | O191: -2.684 | P191: m2
A192: 23. NORMAL KAT | B192: M-A-UP-DV-23-102-R01-(+100.50 ) | C192: G_EP01 | D192: DUVAR ÜZERİ ALÇI SIVA (MLZ. + ISCILIK) | F192: 111 | G192: 23. KAT ALÇI SIVA | H192: 1 | I192: 1 | J192: 1.9 | K192: 1 | L192: 3.73 | M192: 7.087 | N192: 0 | O192: 7.087 | P192: m2
A193: 23. NORMAL KAT | B193: M-A-UP-DV-23-102-R01-(+100.50 ) | C193: G_EP01 | D193: DUVAR ÜZERİ ALÇI SIVA (MLZ. + ISCILIK) | F193: 112 | G193: 23. KAT ALÇI SIVA | H193: 1 | I193: 2 | J193: 0.32 | K193: 1 | L193: 2.95 | M193: 1.888 | N193: 0 | O193: 1.888 | P193: m2
A194: 23. NORMAL KAT | B194: M-A-UP-DV-23-102-R01-(+100.50 ) | C194: G_EP01 | D194: DUVAR ÜZERİ ALÇI SIVA (MLZ. + ISCILIK) | F194: 113 | G194: 23. KAT ALÇI SIVA | H194: 1 | I194: 1 | J194: 2.08 | K194: 1 | L194: 3.73 | M194: 7.7584 | N194: 0 | O194: 7.7584 | P194: m2
A195: 23. NORMAL KAT | B195: M-A-UP-DV-23-102-R01-(+100.50 ) | C195: G_EP01 | D195: DUVAR ÜZERİ ALÇI SIVA (MLZ. + ISCILIK) | F195: K2 | G195: Minha Kapı | H195: 1 | I195: -1 | J195: 0.8 | K195: 1 | L195: 2.44 | M195: 0 | N195: 1.952 | O195: -1.952 | P195: m2
A196: 23. NORMAL KAT | B196: M-A-UP-DV-23-102-R01-(+100.50 ) | C196: G_EP01 | D196: DUVAR ÜZERİ ALÇI SIVA (MLZ. + ISCILIK) | F196: 114 | G196: 23. KAT ALÇI SIVA | H196: 1 | I196: 1 | J196: 3.35 | K196: 1 | L196: 3.73 | M196: 12.4955 | N196: 0 | O196: 12.4955 | P196: m2
A197: 23. NORMAL KAT | B197: M-A-UP-DV-23-102-R01-(+100.50 ) | C197: G_EP01 | D197: DUVAR ÜZERİ ALÇI SIVA (MLZ. + ISCILIK) | F197: KR4 | G197: Kiriş Minha | H197: 1 | I197: -1 | J197: 0.48 | K197: 1 | L197: 0.52 | M197: 0 | N197: 0.2496 | O197: -0.2496 | P197: m2
A198: 23. NORMAL KAT | B198: M-A-UP-DV-23-102-R01-(+100.50 ) | C198: G_EP01 | D198: DUVAR ÜZERİ ALÇI SIVA (MLZ. + ISCILIK) | F198: 115 | G198: 23. KAT ALÇI SIVA | H198: 1 | I198: 1 | J198: 2.63 | K198: 1 | L198: 3.25 | M198: 8.5475 | N198: 0 | O198: 8.5475 | P198: m2
A199: 23. NORMAL KAT | B199: M-A-UP-DV-23-102-R01-(+100.50 ) | C199: G_EP01 | D199: DUVAR ÜZERİ ALÇI SIVA (MLZ. + ISCILIK) | F199: 116 | G199: 23. KAT ALÇI SIVA | H199: 1 | I199: 1 | J199: 1.93 | K199: 1 | L199: 3.73 | M199: 7.1989 | N199: 0 | O199: 7.1989 | P199: m2
A200: 23. NORMAL KAT | B200: M-A-UP-DV-23-102-R01-(+100.50 ) | C200: G_EP01 | D200: DUVAR ÜZERİ ALÇI SIVA (MLZ. + ISCILIK) | F200: K2 | G200: Minha Kapı | H200: 1 | I200: -1 | J200: 0.8 | K200: 1 | L200: 2.44 | M200: 0 | N200: 1.952 | O200: -1.952 | P200: m2
A201: 23. NORMAL KAT | B201: M-A-UP-DV-23-102-R01-(+100.50 ) | C201: G_EP01 | D201: DUVAR ÜZERİ ALÇI SIVA (MLZ. + ISCILIK) | F201: 117 | G201: 23. KAT ALÇI SIVA | H201: 1 | I201: 1 | J201: 1.93 | K201: 1 | L201: 3.25 | M201: 6.2725 | N201: 0 | O201: 6.2725 | P201: m2
A202: 23. NORMAL KAT | B202: M-A-UP-DV-23-102-R01-(+100.50 ) | C202: G_EP01 | D202: DUVAR ÜZERİ ALÇI SIVA (MLZ. + ISCILIK) | F202: 118 | G202: 23. KAT ALÇI SIVA | H202: 1 | I202: 2 | J202: 3.22 | K202: 1 | L202: 3.73 | M202: 24.0212 | N202: 0 | O202: 24.0212 | P202: m2
A203: 23. NORMAL KAT | B203: M-A-UP-DV-23-102-R01-(+100.50 ) | C203: G_EP01 | D203: DUVAR ÜZERİ ALÇI SIVA (MLZ. + ISCILIK) | F203: KR5 | G203: Kiriş Minha | H203: 1 | I203: -2 | J203: 0.48 | K203: 1 | L203: 0.5 | M203: 0 | N203: 0.48 | O203: -0.48 | P203: m2
A204: 23. NORMAL KAT | B204: M-A-UP-DV-23-102-R01-(+100.50 ) | C204: G_EP01 | D204: DUVAR ÜZERİ ALÇI SIVA (MLZ. + ISCILIK) | F204: 119 | G204: 23. KAT ALÇI SIVA | H204: 1 | I204: 1 | J204: 5.79 | K204: 1 | L204: 3.73 | M204: 21.5967 | N204: 0 | O204: 21.5967 | P204: m2
A205: 23. NORMAL KAT | B205: M-A-UP-DV-23-102-R01-(+100.50 ) | C205: G_EP01 | D205: DUVAR ÜZERİ ALÇI SIVA (MLZ. + ISCILIK) | F205: K3 | G205: Minha Kapı | H205: 1 | I205: -1 | J205: 1 | K205: 1 | L205: 1 | M205: 0 | N205: 1 | O205: -1 | P205: m2
A206: 23. NORMAL KAT | B206: M-A-UP-DV-23-102-R01-(+100.50 ) | C206: G_EP01 | D206: DUVAR ÜZERİ ALÇI SIVA (MLZ. + ISCILIK) | F206: K4 | G206: Minha Kapı | H206: 1 | I206: -1 | J206: 0.65 | K206: 1 | L206: 1.8 | M206: =IF(I206>0,H206*I206*J206*K206*L206,0) -> 0 | N206: =IF(I206<0,H206*I206*J206*K206*L206*-1,0) -> 1.17 | O206: =+M206-N206 -> -1.17 | P206: m2
A207: 23. NORMAL KAT | B207: M-A-UP-DV-23-102-R01-(+100.50 ) | C207: G_EP01 | D207: DUVAR ÜZERİ ALÇI SIVA (MLZ. + ISCILIK) | F207: 120 | G207: 23. KAT ALÇI SIVA | H207: 1 | I207: 1 | J207: 10.15 | K207: 1 | L207: 3.73 | M207: 37.8595 | N207: 0 | O207: 37.8595 | P207: m2
... 116 more rows
